fUST/lending_fUST_20240716
["ID","MTS","AMOUNT","RATE_DAILY","PERIOD"]
[332353483,1721127043281,-507.25596057,0.00021917,2]
[332353485,1721127043292,-151.0,0.00021917,2]
[332353488,1721127043304,-154.411635,0.00021917,2]
[332353490,1721127043314,-500.0,0.00021917,2]
[332353492,1721127043324,-500.0,0.00021917,2]
[332353494,1721127043334,-500.0,0.00021917,2]
[332353496,1721127043343,-500.0,0.00021917,2]
[332353498,1721127043354,-500.0,0.00021917,2]
[332353500,1721127043363,-500.0,0.00021917,2]
[332353502,1721127043373,-500.0,0.00021917,2]
[332353504,1721127043382,-500.0,0.00021917,2]
[332353516,1721127043483,-500.0,0.00021917,2]
[332353518,1721127043494,-508.01061373,0.00021917,2]
[332353520,1721127043503,-500.0,0.00021917,2]
[332353522,1721127043513,-500.0,0.00021917,2]
[332353524,1721127043522,-500.0,0.00021917,2]
[332353526,1721127043532,-501.22924988,0.00021917,2]
[332353528,1721127043542,-500.0,0.00021917,2]
[332353530,1721127043551,-581.0521385,0.00021917,2]
[332353532,1721127043560,-500.0,0.00021917,2]
[332353534,1721127043570,-500.0,0.00021917,2]
[332353536,1721127043580,-500.0,0.00021917,2]
[332353538,1721127043590,-500.0,0.00021917,2]
[332353541,1721127043602,-500.0,0.00021917,2]
[332353542,1721127043611,-500.0,0.00021917,2]
[332353545,1721127043620,-500.0,0.00021917,2]
[332353546,1721127043629,-500.0,0.00021917,2]
[332353548,1721127043639,-500.0,0.00021917,2]
[332353551,1721127043649,-500.0,0.00021917,2]
[332353553,1721127043659,-500.0,0.00021917,2]
[332353555,1721127043668,-500.0,0.00021917,2]
[332353557,1721127043677,-500.0,0.00021917,2]
[332353559,1721127043686,-500.0,0.00021917,2]
[332353561,1721127043696,-518.77490921,0.00021917,2]
[332353563,1721127043706,-500.0,0.00021917,2]
[332353565,1721127043715,-500.0,0.00021917,2]
[332353567,1721127043725,-500.0,0.00021917,2]
[332353569,1721127043735,-500.0,0.00021917,2]
[332353571,1721127043745,-500.0,0.00021917,4]
[332353573,1721127043755,-500.0,0.00021917,2]
[332353575,1721127043766,-500.0,0.00021917,2]
[332353577,1721127043775,-500.0,0.00021917,2]
[332353579,1721127043785,-500.0,0.00021917,2]
[332353581,1721127043795,-500.0,0.00021917,2]
[332353583,1721127043804,-500.0,0.00021917,2]
[332353585,1721127043814,-500.0,0.00021917,2]
[332353587,1721127043823,-500.0,0.00021917,2]
[332353589,1721127043833,-500.0,0.00021917,2]
[332353591,1721127043842,-500.0,0.00021917,2]
[332353593,1721127043851,-501.5508022,0.00021917,2]
[332353595,1721127043860,-500.0,0.00021917,2]
[332353597,1721127043869,-500.0,0.00021917,2]
[332353599,1721127043879,-243.248042,0.00021917,2]
[332353601,1721127043888,-500.0,0.00021917,2]
[332353603,1721127043898,-500.0,0.00021917,2]
[332353605,1721127043907,-500.0,0.00021917,2]
[332353607,1721127043917,-500.0,0.00021917,2]
[332353609,1721127043926,-500.0,0.00021917,2]
[332353611,1721127043936,-550.60314022,0.00021917,2]
[332353613,1721127043946,-501.33424442,0.00021917,2]
[332353615,1721127043955,-470.8655459,0.00021917,2]
[332353617,1721127043965,-509.85519281,0.00021917,2]
[332353619,1721127043974,-500.0,0.00021917,2]
[332353621,1721127043983,-500.0,0.00021917,2]
[332353624,1721127043993,-500.0,0.00021917,2]
[332353626,1721127044002,-500.0,0.00021917,2]
[332353627,1721127044012,-500.0,0.00021917,2]
[332353629,1721127044024,-151.0,0.00021917,2]
[332353631,1721127044033,-151.0,0.00021917,2]
[332353633,1721127044042,-500.0,0.00021917,2]
[332353635,1721127044052,-151.0,0.00021917,2]
[332353637,1721127044062,-500.0,0.00021917,2]
[332353639,1721127044071,-500.0,0.00021917,2]
[332353641,1721127044080,-151.0,0.00021917,2]
[332353643,1721127044089,-151.0,0.00021917,2]
[332353645,1721127044101,-151.0,0.00021917,2]
[332353647,1721127044110,-300.156546,0.00021917,2]
[332353650,1721127044120,-500.0,0.00021917,2]
[332353651,1721127044129,-500.0,0.00021917,2]
[332353653,1721127044138,-500.0,0.00021917,2]
[332353655,1721127044147,-500.0,0.00021917,2]
[332353657,1721127044157,-500.0,0.00021917,2]
[332353659,1721127044166,-500.0,0.00021917,2]
[332353661,1721127044175,-500.0,0.00021917,2]
[332353664,1721127044184,-500.0,0.00021917,2]
[332353666,1721127044194,-500.0,0.00021917,2]
[332353667,1721127044203,-500.0,0.00021917,2]
[332353669,1721127044212,-500.0,0.00021917,2]
[332353671,1721127044222,-500.0,0.00021917,2]
[332353673,1721127044231,-500.0,0.00021917,2]
[332353676,1721127044241,-500.0,0.00021917,2]
[332353678,1721127044251,-500.60835718,0.00021917,2]
[332353680,1721127044261,-500.0,0.00021917,2]
[332353682,1721127044269,-500.0,0.00021917,2]
[332353684,1721127044278,-518.4364734,0.00021917,2]
[332353686,1721127044287,-500.0,0.00021917,2]
[332353688,1721127044297,-500.0,0.00021917,2]
[332353690,1721127044306,-501.51289383,0.00021917,2]
[332353692,1721127044314,-515.92512186,0.00021917,2]
[332353694,1721127044324,-500.0,0.00021917,2]
[332353696,1721127044333,-500.0,0.00021917,2]
[332353698,1721127044342,-500.0,0.00021917,2]
[332353700,1721127044352,-500.0,0.00021917,2]
[332353703,1721127044362,-500.0,0.00021917,2]
[332353706,1721127044371,-326.17890059,0.00021917,2]
[332353816,1721127045301,-151.0,0.00021907,2]
[332353818,1721127045310,-173.82109941,0.00021917,2]
[332353820,1721127045320,-500.0,0.00021917,2]
[332353822,1721127045329,-500.0,0.00021917,2]
[332353824,1721127045339,-527.467278,0.00021917,2]
[332353826,1721127045348,-500.0,0.00021917,2]
[332353828,1721127045359,-500.0,0.00021917,2]
[332353830,1721127045369,-501.15279951,0.00021917,2]
[332353832,1721127045378,-500.0,0.00021917,2]
[332353834,1721127045388,-500.0,0.00021917,2]
[332353836,1721127045397,-500.0,0.00021917,2]
[332353849,1721127045507,-500.0,0.00021917,2]
[332353851,1721127045518,-500.0,0.00021917,2]
[332353853,1721127045528,-500.0,0.00021917,2]
[332353855,1721127045538,-500.0,0.00021917,2]
[332353857,1721127045549,-500.0,0.00021917,2]
[332353859,1721127045561,-500.0,0.00021917,2]
[332353861,1721127045571,-500.0,0.00021917,2]
[332353863,1721127045582,-519.64165625,0.00021917,2]
[332353865,1721127045592,-500.0,0.00021917,2]
[332353867,1721127045603,-197.92195783,0.00021917,2]
[332353980,1721127046678,-302.07804217,0.00021917,2]
[332353982,1721127046689,-500.0,0.00021917,2]
[332353984,1721127046699,-500.0,0.00021917,2]
[332353986,1721127046710,-500.0,0.00021917,2]
[332353988,1721127046720,-500.0,0.00021917,2]
[332353990,1721127046730,-500.0,0.00021917,2]
[332353992,1721127046742,-500.0,0.00021917,2]
[332353994,1721127046753,-505.06363925,0.00021917,2]
[332353996,1721127046764,-500.0,0.00021917,2]
[332353998,1721127046775,-505.725413,0.00021917,2]
[332354000,1721127046785,-500.0,0.00021917,2]
[332354002,1721127046795,-500.0,0.00021917,2]
[332354004,1721127046805,-505.61306101,0.00021917,2]
[332354006,1721127046814,-504.83746317,0.00021917,2]
[332354008,1721127046824,-500.0,0.00021917,2]
[332354010,1721127046834,-176.0035614,0.00021917,2]
[332358737,1721127201609,150.66852924,0.00021275,30]
[332358738,1721127201681,150.66852924,0.0002085,120]
[332358741,1721127607492,189.51973353,0.00016255,2]
[332358742,1721127638786,790.77511278,0.00016255,2]
[332358743,1721127639170,-1000.0,0.00022,22]
[332358744,1721127691103,150.66852924,0.00021054,30]
[332358745,1721127691179,150.66852924,0.00020633,120]
[332358746,1721127733773,-300.0,0.00018797,2]
[332358747,1721127733797,-152.0,0.00018797,2]
[332358748,1721127733823,-122.71695385,0.00018798,2]
[332358749,1721127733852,-356.61183654,0.00018798,2]
[332358750,1721127733885,-356.61183654,0.00018798,2]
[332358751,1721127733920,-356.61183654,0.00018798,2]
[332358752,1721127734007,-476.2,0.00018798,2]
[332358753,1721127734041,-250.0,0.00018798,2]
[332358754,1721127734074,-2660.10008372,0.00018798,2]
[332358755,1721127734135,-373.72649179,0.00018798,2]
[332358756,1721127734201,-420.0,0.00018798,2]
[332358757,1721127734232,-2971.4934987,0.00018798,2]
[332358758,1721127734303,-21655.92746232,0.00018798,2]
[332358759,1721127734537,-1000.0,0.00020849,10]
[332358760,1721127734576,-9630.55410001,0.00018899,2]
[332358763,1721127810711,373.72649179,0.00016255,2]
[332358764,1721127860672,7970.34604589,0.00018798,2]
[332358765,1721127901299,300.0,0.00018797,2]
[332358766,1721127950647,10000.0,0.00018798,2]
[332358768,1721128001644,1625.91056721,0.00016255,2]
[332358769,1721128014780,-300.0,0.00018797,2]
[332358770,1721128026488,394.98894751,0.00016255,2]
[332358771,1721128038164,5387.01105249,0.00018798,2]
[332358772,1721128047746,196.09695636,0.00016255,2]
[332358779,1721128138566,1476.25165056,0.00016255,2]
[332358780,1721128183547,441.05855045,0.00016255,2]
[332358822,1721128232776,-300.0,0.00018797,2]
[332358824,1721128232786,-1471.8042138,0.00018898,2]
[332358963,1721128236254,163.59936671,0.00016255,2]
[332359230,1721128241054,-28528.1957862,0.00018898,2]
[332359233,1721128241065,-30000.0,0.00018898,2]
[332359235,1721128241075,-574.71695385,0.000189,2]
[332359237,1721128241083,-183.20128039,0.00019109,2]
[332359239,1721128241093,-500.0,0.00019109,2]
[332359241,1721128241107,-187.0328799,0.0001911,2]
[332359243,1721128241116,-250.0,0.00019177,2]
[332359245,1721128241126,-3000.0,0.00019359,2]
[332359247,1721128241134,-162.201631,0.00019412,2]
[332359249,1721128241143,-7309.5339157,0.0001995,2]
[332359251,1721128241153,-435.0,0.0002,2]
[332359253,1721128241161,-169.804076,0.00020153,2]
[332359255,1721128241170,-655.86242045,0.00020244,2]
[332359257,1721128241182,-169.804076,0.00020258,2]
[332359259,1721128241191,-356.61183654,0.00020337,2]
[332359261,1721128241201,-169.804076,0.00020363,2]
[332359263,1721128241210,-169.804076,0.00020468,2]
[332359276,1721128241322,-169.804076,0.00020573,2]
[332359278,1721128241334,-163.5,0.0002058,2]
[332359280,1721128241346,-6876.61298454,0.00020633,2]
[332359283,1721128241361,-225.98775772,0.00020633,2]
[332359285,1721128241370,-428.86667829,0.00020633,2]
[332359287,1721128241379,-764.72891361,0.00020633,2]
[332359289,1721128241390,-169.804076,0.00020678,2]
[332359291,1721128241402,-356.61183654,0.00020706,2]
[332359293,1721128241414,-169.804076,0.00020783,2]
[332359295,1721128241424,-4892.16826804,0.00020787,2]
[332359297,1721128241433,-163.5,0.00020826,2]
[332359299,1721128241443,-169.804076,0.00020888,2]
[332359301,1721128241453,-169.804076,0.00020993,2]
[332359303,1721128241463,-160.0,0.00021,3]
[332359305,1721128241474,-476.2,0.00021,2]
[332359307,1721128241483,-163.5,0.00021072,2]
[332359309,1721128241494,-4892.16826804,0.00021082,2]
[332359311,1721128241505,-285.0,0.00021095,2]
[332359313,1721128241514,-270.92599341,0.00021095,2]
[332359315,1721128241524,-154.65203293,0.00021095,4]
[332359317,1721128241533,-154.65203293,0.00021095,4]
[332359319,1721128241543,-403.978503,0.00021096,2]
[332359321,1721128241552,-159.411638,0.00021096,2]
[332359323,1721128241562,-169.804076,0.00021098,2]
[332359325,1721128241572,-150.0,0.00021158,2]
[332359327,1721128241582,-169.804076,0.00021203,2]
[332359329,1721128241592,-4892.16826804,0.00021225,2]
[332359331,1721128241604,-621.79312102,0.00021256,2]
[332359333,1721128241613,-213.254361,0.00021296,2]
[332359335,1721128241623,-246.112373,0.00021296,2]
[332359337,1721128241633,-163.5,0.00021318,2]
[332359339,1721128241643,-150.0,0.00021342,2]
[332359341,1721128241653,-504.0,0.00021342,2]
[332359343,1721128241663,-160.0,0.00021379,4]
[332359345,1721128241673,-2230.60445572,0.00021384,2]
[332359347,1721128241682,-151.50895514,0.00021425,2]
[332359349,1721128241692,-2230.6044557,0.00021492,2]
[332359351,1721128241702,-163.5,0.00021564,2]
[332359353,1721128241712,-2230.6044557,0.00021601,2]
[332359355,1721128241721,-1407.0,0.00021606,2]
[332359357,1721128241732,-4892.16826804,0.00021643,2]
[332359360,1721128241742,-4892.16826808,0.0002167,2]
[332359362,1721128241751,-253.6279002,0.00021697,2]
[332359364,1721128241761,-2230.6044557,0.00021709,2]
[332359366,1721128241771,-160.0,0.00021757,5]
[332359368,1721128241780,-7254.97240528,0.00021807,3]
[332359370,1721128241790,-161.04,0.00021807,3]
[332359372,1721128241801,-483.14,0.00021807,3]
[332359374,1721128241811,-163.5,0.0002181,2]
[332359376,1721128241820,-151.0,0.0002181,2]
[332359378,1721128241830,-50130.80302472,0.00021817,3]
[332359381,1721128241840,-2000.0,0.00021817,2]
[332359383,1721128241853,-2230.6044557,0.00021817,2]
[332359385,1721128241862,-300.0,0.0002187,2]
[332359387,1721128241872,-7254.97240528,0.00021883,3]
[332359389,1721128241881,-150.112233,0.000219,2]
[332359391,1721128241890,-3000.0,0.000219,2]
[332359393,1721128241900,-619.87801888,0.00021906,2]
[332359395,1721128241910,-175.26339623,0.00021906,2]
[332359397,1721128241919,-500.0,0.00021906,2]
[332359399,1721128241930,-600.02825112,0.00021906,2]
[332359401,1721128241940,-500.0,0.00021906,2]
[332359403,1721128241950,-500.0,0.00021906,2]
[332359405,1721128241959,-500.0,0.00021906,2]
[332359407,1721128241969,-150.0,0.00021906,2]
[332359409,1721128241979,-94314.6412686,0.00021907,3]
[332359411,1721128241989,-3000.0,0.0002191,2]
[332359413,1721128241999,-3447.56187803,0.00021917,5]
[332359415,1721128242008,-8037.49821751,0.00021917,5]
[332359417,1721128242021,-189.51973353,0.00021917,2]
[332359419,1721128242033,-205.82684542,0.00021917,2]
[332359421,1721128242042,-500.0,0.00021917,2]
[332359424,1721128242053,-502.34002081,0.00021917,2]
[332359426,1721128242064,-500.0,0.00021917,2]
[332359428,1721128242074,-500.0,0.00021917,2]
[332359430,1721128242083,-500.0,0.00021917,2]
[332359432,1721128242093,-500.0,0.00021917,2]
[332359434,1721128242105,-507.25596057,0.00021917,2]
[332359436,1721128242115,-500.0,0.00021917,2]
[332359438,1721128242126,-500.0,0.00021917,2]
[332359440,1721128242136,-500.0,0.00021917,2]
[332359442,1721128242146,-518.77490921,0.00021917,2]
[332359444,1721128242157,-501.5508022,0.00021917,2]
[332359446,1721128242167,-500.0,0.00021917,2]
[332359448,1721128242178,-500.0,0.00021917,2]
[332359450,1721128242187,-500.0,0.00021917,2]
[332359452,1721128242197,-500.0,0.00021917,2]
[332359454,1721128242208,-509.85519281,0.00021917,2]
[332359456,1721128242218,-500.0,0.00021917,2]
[332359458,1721128242228,-500.0,0.00021917,2]
[332359461,1721128242238,-500.0,0.00021917,2]
[332359463,1721128242248,-508.01061373,0.00021917,2]
[332359465,1721128242258,-500.0,0.00021917,2]
[332359467,1721128242267,-500.0,0.00021917,2]
[332359468,1721128242276,-500.0,0.00021917,2]
[332359470,1721128242285,-500.0,0.00021917,2]
[332359472,1721128242294,-500.0,0.00021917,2]
[332359475,1721128242304,-500.0,0.00021917,4]
[332359477,1721128242315,-197.1899188,0.00021917,2]
[332359660,1721128244155,-236.63246666,0.00021917,2]
[332359681,1721128244340,-66.17761454,0.00021917,2]
[332359682,1721128244349,-500.0,0.00021917,2]
[332359684,1721128244359,-500.0,0.00021917,2]
[332359686,1721128244368,-243.248042,0.00021917,2]
[332359688,1721128244379,-500.0,0.00021917,2]
[332359690,1721128244388,-500.0,0.00021917,2]
[332359692,1721128244398,-500.0,0.00021917,2]
[332359694,1721128244410,-500.0,0.00021917,2]
[332359696,1721128244420,-500.0,0.00021917,2]
[332359707,1721128244512,-500.0,0.00021917,2]
[332359709,1721128244522,-511.06386867,0.00021917,2]
[332359711,1721128244531,-500.0,0.00021917,2]
[332359713,1721128244541,-500.0,0.00021917,2]
[332359715,1721128244551,-500.0,0.00021917,2]
[332359717,1721128244561,-500.0,0.00021917,2]
[332359719,1721128244571,-500.0,0.00021917,2]
[332359721,1721128244582,-500.0,0.00021917,2]
[332359723,1721128244592,-500.0,0.00021917,2]
[332359725,1721128244601,-500.0,0.00021917,2]
[332359727,1721128244612,-505.11920375,0.00021917,2]
[332359729,1721128244622,-245.39606204,0.00021917,2]
[332359978,1721128247035,-256.7812868,0.00021917,2]
[332359980,1721128247045,-500.0,0.00021917,2]
[332359982,1721128247055,-518.4364734,0.00021917,2]
[332359984,1721128247064,-500.0,0.00021917,2]
[332359986,1721128247073,-500.0,0.00021917,2]
[332359988,1721128247082,-500.0,0.00021917,2]
[332359990,1721128247091,-500.0,0.00021917,2]
[332359991,1721128247100,-507.84554568,0.00021917,2]
[332359993,1721128247111,-500.0,0.00021917,2]
[332359996,1721128247124,-501.75263621,0.00021917,2]
[332359998,1721128247133,-500.0,0.00021917,2]
[332360000,1721128247144,-500.0,0.00021917,2]
[332360002,1721128247153,-501.15279951,0.00021917,2]
[332360004,1721128247164,-151.0,0.00021917,2]
[332360006,1721128247174,-500.0,0.00021917,2]
[332360008,1721128247183,-509.84129892,0.00021917,2]
[332360010,1721128247193,-500.0,0.00021917,2]
[332360012,1721128247202,-500.0,0.00021917,2]
[332360014,1721128247212,-519.64165625,0.00021917,2]
[332360016,1721128247223,-500.0,0.00021917,2]
[332360018,1721128247234,-500.0,0.00021917,2]
[332360020,1721128247244,-500.0,0.00021917,2]
[332360022,1721128247253,-500.0,0.00021917,2]
[332360024,1721128247263,-500.0,0.00021917,2]
[332360025,1721128247272,-500.0,0.00021917,2]
[332360026,1721128247283,-515.68978922,0.00021917,2]
[332360028,1721128247292,-509.98058389,0.00021917,2]
[332360030,1721128247302,-509.82155362,0.00021917,2]
[332360032,1721128247311,-500.0,0.00021917,2]
[332360034,1721128247320,-500.0,0.00021917,2]
[332360036,1721128247329,-234.93471355,0.00021917,2]
[332360570,1721128253249,150.66852924,0.00021936,30]
[332360591,1721128253445,150.66852924,0.00021497,120]
[332362393,1721128430263,444.25501487,0.00016255,2]
[332362395,1721128723155,150.65349696,0.00021109,30]
[332362396,1721128723231,150.65349696,0.00020687,120]
[332362412,1721129126233,150.66852924,0.00021147,30]
[332362413,1721129126307,150.66852924,0.00020724,120]
[332362418,1721129305033,10011.83334915,0.000125,2]
[332362420,1721129316587,4850.11083914,0.000139,2]
[332362421,1721129322205,155.0,0.00018,30]
[332362422,1721129324277,1565.27393309,0.0002,120]
[332362423,1721129325046,38430.38571636,0.00024,60]
[332362424,1721129325422,150.0,2.75e-05,120]
[332362425,1721129326648,29315.36280648,0.00014,2]
[332362426,1721129326982,25637.27684746,0.0001,2]
[332362427,1721129327143,1126.2,0.00016,30]
[332362436,1721129374117,-169.804076,0.00018666,2]
[332362437,1721129374141,-169.804076,0.00018763,2]
[332362438,1721129374163,-28229.81467635,0.00018798,2]
[332362440,1721129388414,150.65349696,0.00021185,30]
[332362441,1721129388501,150.65349696,0.00020762,120]
[332363079,1721129440136,-250.0,0.00018523,2]
[332363081,1721129440146,-169.804076,0.0001886,2]
[332363083,1721129440155,-899.04095957,0.00018898,2]
[332363085,1721129440167,-29100.95904043,0.00018898,2]
[332363087,1721129440176,-169.804076,0.00018958,2]
[332363089,1721129440186,-633.35532827,0.00019047,2]
[332363091,1721129440195,-169.804076,0.00019055,2]
[332363093,1721129440205,-169.804076,0.00019152,2]
[332363095,1721129440214,-169.804076,0.00019249,2]
[332363097,1721129440223,-169.804076,0.00019347,2]
[332363099,1721129440232,-169.804076,0.00019444,2]
[332363101,1721129440241,-169.804076,0.00019541,2]
[332363103,1721129440251,-162.201631,0.0001962,2]
[332363105,1721129440260,-169.804076,0.00019639,2]
[332363107,1721129440271,-187.0328799,0.00019803,2]
[332363109,1721129440280,-161.04,0.0001999,3]
[332363111,1721129440290,-483.14,0.0001999,3]
[332363113,1721129440299,-300.0,0.00019998,2]
[332363115,1721129440308,-500.0,0.00019999,2]
[332363117,1721129440318,-183.20128039,0.00019999,2]
[332363119,1721129440328,-500.0,0.00019999,2]
[332363121,1721129440338,-500.0,0.00019999,2]
[332363123,1721129440348,-500.0,0.00019999,2]
[332363125,1721129440358,-500.0,0.00019999,2]
[332363127,1721129440369,-500.0,0.00019999,2]
[332363129,1721129440378,-500.0,0.00019999,2]
[332363131,1721129440388,-500.0,0.00019999,2]
[332363133,1721129440397,-500.0,0.00019999,2]
[332363135,1721129440406,-500.0,0.00019999,2]
[332363137,1721129440416,-500.0,0.00019999,2]
[332363138,1721129440425,-500.0,0.00019999,2]
[332363141,1721129440434,-156.29691944,0.00019999,2]
[332363142,1721129440444,-500.0,0.00019999,2]
[332363144,1721129440454,-32222.50859767,0.0002,2]
[332363146,1721129440463,-31222.86040465,0.0002,2]
[332363149,1721129440473,-742.90635127,0.000202,2]
[332363151,1721129440483,-1773.77179743,0.00020332,2]
[332363153,1721129440493,-160.59785,0.00020432,2]
[332363155,1721129440502,-163.5,0.00020619,2]
[332363157,1721129440511,-4892.16826804,0.00020646,2]
[332363158,1721129440522,-4237.16242018,0.0002066,7]
[332363160,1721129440531,-764.86209876,0.00020724,2]
[332363163,1721129440541,-6876.61298454,0.00020762,2]
[332363165,1721129440551,-428.86667829,0.00020762,2]
[332363167,1721129440561,-225.98775772,0.00020762,2]
[332363170,1721129440581,-163.5,0.00020861,2]
[332363172,1721129440594,-4892.16826804,0.00020865,2]
[332363174,1721129440605,-1000.0,0.00021,21]
[332363176,1721129440616,-232.3673533,0.00021,2]
[332363178,1721129440626,-4313.62633676,0.00021,2]
[332363181,1721129440637,-270.92599341,0.00021095,2]
[332363183,1721129440647,-383.779577,0.00021096,2]
[332363185,1721129440658,-166.507908,0.00021096,2]
[332363187,1721129440669,-150.0,0.00021101,2]
[332363189,1721129440679,-163.5,0.00021104,2]
[332363191,1721129440690,-4892.16826804,0.0002124,2]
[332363193,1721129440700,-246.112373,0.00021296,2]
[332363195,1721129440711,-213.254361,0.00021296,2]
[332363197,1721129440722,-163.5,0.00021346,2]
[332363200,1721129440732,-322.08,0.0002136,3]
[332363202,1721129440742,-4892.16826804,0.00021381,2]
[332363204,1721129440753,-8091.56995077,0.00021426,3]
[332363206,1721129440766,-2000.0,0.000215,5]
[332363208,1721129440778,-151.50895514,0.00021513,2]
[332363210,1721129440788,-163.5,0.00021589,2]
[332363212,1721129440798,-150.65349696,0.00021618,7]
[332363214,1721129440810,-253.6279002,0.00021697,2]
[332363216,1721129440819,-300.0,0.00021702,2]
[332363218,1721129440830,-2230.60445572,0.00021717,2]
[332363220,1721129440842,-4892.16826808,0.0002172,2]
[332363222,1721129440852,-2230.6044557,0.00021742,2]
[332363224,1721129440862,-160.0,0.00021757,3]
[332363227,1721129440873,-2230.6044557,0.00021767,2]
[332363229,1721129440883,-2230.6044557,0.00021792,2]
[332363231,1721129440893,-2000.0,0.00021793,2]
[332363233,1721129440903,-16183.1399015,0.00021807,3]
[332363235,1721129440913,-300.0,0.00021808,2]
[332363237,1721129440923,-175.26339623,0.00021816,2]
[332363240,1721129440933,-500.0,0.00021816,2]
[332363242,1721129440944,-619.87801888,0.00021816,2]
[332363244,1721129440954,-600.02825112,0.00021816,2]
[332363246,1721129440965,-500.0,0.00021816,2]
[332363248,1721129440976,-500.0,0.00021816,2]
[332363250,1721129440985,-500.0,0.00021816,2]
[332363252,1721129440995,-80670.254193,0.00021817,3]
[332363254,1721129441005,-2230.6044557,0.00021817,2]
[332363256,1721129441015,-163.5,0.00021831,2]
[332363258,1721129441026,-151.0,0.00021831,2]
[332363260,1721129441035,-300.0,0.00021849,2]
[332363262,1721129441045,-1010.87356778,0.00021876,2]
[332363264,1721129441056,-17465.83289215,0.00021893,2]
[332363524,1721129443216,-4429.51969685,0.00021893,2]
[332363527,1721129443233,-9571.004791,0.00021893,2]
[332364240,1721129752110,154.65203293,0.00016255,4]
[332364242,1721129783438,150.65349696,0.00021534,30]
[332364243,1721129783513,150.65349696,0.00021104,120]
[332364251,1721129973053,156.00050148,0.00016255,2]
[332364252,1721130041715,201.46090254,0.00016255,2]
[332364253,1721130110820,150.65349696,0.00021268,30]
[332364254,1721130110904,150.65349696,0.00020842,120]
[332364256,1721130205623,157.83467219,0.00016255,2]
[332364257,1721130243412,628.25501491,0.00016255,7]
[332364258,1721130417134,-316.73756972,0.00018798,2]
[332364259,1721130454103,-599.59445316,0.00018798,2]
[332364260,1721130454127,-12597.84258372,0.00018946,2]
[332364265,1721130601940,150.65349696,0.00021309,30]
[332364266,1721130602008,150.65349696,0.00020882,120]
[332364317,1721130632092,-484.83082982,0.00018946,2]
[332364318,1721130632145,-2924.07966289,0.00018946,2]
[332364319,1721130632158,-1000.0,0.00018946,2]
[332364910,1721130638289,-7893.24692357,0.00018946,2]
[332364912,1721130638300,-250.0,0.00018993,2]
[332364914,1721130638309,-163.576048,0.00019108,2]
[332364916,1721130638319,-3000.0,0.00019109,2]
[332364918,1721130638329,-166.666673,0.00019121,2]
[332364921,1721130638339,-250.0,0.00019159,2]
[332364923,1721130638350,-487.15241355,0.00019168,2]
[332364925,1721130638362,-160.59785,0.00019178,2]
[332364927,1721130638373,-270.8385715,0.00019755,2]
[332364929,1721130638383,-435.0,0.0002,2]
[332364931,1721130638393,-393.39817321,0.0002,4]
[332364933,1721130638403,-294.48751517,0.0002,2]
[332364935,1721130638413,-166.666673,0.00020117,2]
[332364937,1721130638422,-742.90635028,0.000202,2]
[332364940,1721130638432,-655.86242045,0.00020244,2]
[332364942,1721130638442,-4892.16826804,0.00020525,2]
[332364943,1721130638452,-163.5,0.00020552,2]
[332364946,1721130638463,-4892.16826804,0.0002056,2]
[332364948,1721130638472,-2355.81270017,0.00020784,2]
[332364950,1721130638482,-163.5,0.00020801,2]
[332364952,1721130638491,-16183.1399015,0.00020832,2]
[332364954,1721130638502,-322.08,0.00020832,3]